[Event "Titled Tuesday Blitz June 27 Early 2023"]
[White "Romero Ruscalleda, Josep"]
[Black "Gedajlovic, Max"]
[WhiteFideId "2231859"]
[BlackFideId "2616840"]
[WhiteElo "2349"]
[BlackElo "2711"]
[Result "1/2-1/2"]
[Round "2"]
[TimeControl "180+2"]
[Date "2023.06.27"]
[WhiteClock "0:00:29"]
[BlackClock "0:00:26"]
[Board "102"]

1. e4 {[%clk 0:03:00]}  e5 {[%clk 0:02:56]} 2. Nf3 {[%clk 0:03:00]}  Nc6 {[%clk 0:02:53]} 3. Bc4 {[%clk 0:03:00]}  Nf6 {[%clk 0:02:52]} 4. d4 {[%clk 0:02:59]}  exd4 {[%clk 0:02:39]} 5. e5 {[%clk 0:03:00]}  d5 {[%clk 0:02:39]} 6. Bb5 {[%clk 0:03:00]}  Nd7 {[%clk 0:02:37]} 7. O-O {[%clk 0:02:58]}  Be7 {[%clk 0:02:31]} 8. Re1 {[%clk 0:02:55]}  O-O {[%clk 0:02:30]} 9. Bf4 {[%clk 0:02:49]}  Nc5 {[%clk 0:02:25]} 10. Nxd4 {[%clk 0:02:43]}  Nxd4 {[%clk 0:02:24]} 11. Qxd4 {[%clk 0:02:42]}  Ne6 {[%clk 0:02:25]} 12. Qd2 {[%clk 0:02:38]}  c6 {[%clk 0:02:16]} 13. Bd3 {[%clk 0:02:38]}  Nxf4 {[%clk 0:02:13]} 14. Qxf4 {[%clk 0:02:37]}  Be6 {[%clk 0:02:10]} 15. Nc3 {[%clk 0:02:36]}  Qb6 {[%clk 0:02:08]} 16. Rab1 {[%clk 0:02:31]}  Qb4 {[%clk 0:02:08]} 17. Qg3 {[%clk 0:02:24]}  Qh4 {[%clk 0:02:04]} 18. Ne2 {[%clk 0:02:09]}  Qxg3 {[%clk 0:02:02]} 19. hxg3 {[%clk 0:02:09]}  c5 {[%clk 0:02:00]} 20. Nf4 {[%clk 0:02:08]}  c4 {[%clk 0:01:54]} 21. Bf1 {[%clk 0:02:00]}  b5 {[%clk 0:01:54]} 22. c3 {[%clk 0:01:59]}  a5 {[%clk 0:01:53]} 23. Rbd1 {[%clk 0:01:52]}  Rad8 {[%clk 0:01:52]} 24. b3 {[%clk 0:01:47]}  cxb3 {[%clk 0:01:45]} 25. axb3 {[%clk 0:01:46]}  a4 {[%clk 0:01:45]} 26. Bxb5 {[%clk 0:01:41]}  axb3 {[%clk 0:01:38]} 27. Rb1 {[%clk 0:01:40]}  d4 {[%clk 0:01:37]} 28. Nxe6 {[%clk 0:01:39]}  fxe6 {[%clk 0:01:35]} 29. cxd4 {[%clk 0:01:39]}  Rxd4 {[%clk 0:01:34]} 30. Rxb3 {[%clk 0:01:38]}  Rd2 {[%clk 0:01:33]} 31. Re2 {[%clk 0:01:32]}  Rxe2 {[%clk 0:01:27]} 32. Bxe2 {[%clk 0:01:31]}  Bc5 {[%clk 0:01:27]} 33. Rf3 {[%clk 0:01:28]}  Rc8 {[%clk 0:01:17]} 34. Kh2 {[%clk 0:01:28]}  Bd4 {[%clk 0:01:17]} 35. Rf4 {[%clk 0:01:20]}  Bxe5 {[%clk 0:01:12]} 36. Re4 {[%clk 0:01:20]}  Bf6 {[%clk 0:01:08]} 37. Rxe6 {[%clk 0:01:20]}  Kf7 {[%clk 0:01:09]} 38. Re4 {[%clk 0:01:14]}  Rc2 {[%clk 0:01:07]} 39. f3 {[%clk 0:01:09]}  g6 {[%clk 0:01:07]} 40. g4 {[%clk 0:01:07]}  Rc5 {[%clk 0:01:03]} 41. Kg3 {[%clk 0:01:05]}  g5 {[%clk 0:00:58]} 42. Bc4+ {[%clk 0:01:02]}  Kg7 {[%clk 0:00:57]} 43. Kf2 {[%clk 0:01:01]}  Ra5 {[%clk 0:00:55]} 44. g3 {[%clk 0:00:59]}  Ra3 {[%clk 0:00:53]} 45. Re2 {[%clk 0:00:46]}  Bd4+ {[%clk 0:00:52]} 46. Kg2 {[%clk 0:00:45]}  Bf6 {[%clk 0:00:46]} 47. Rd2 {[%clk 0:00:45]}  Ra7 {[%clk 0:00:36]} 48. Be6 {[%clk 0:00:43]}  Kf8 {[%clk 0:00:31]} 49. Bf5 {[%clk 0:00:42]}  h6 {[%clk 0:00:32]} 50. f4 {[%clk 0:00:38]}  Kg7 {[%clk 0:00:30]} 51. Rd7+ {[%clk 0:00:36]}  Rxd7 {[%clk 0:00:29]} 52. Bxd7 {[%clk 0:00:37]}  Be7 {[%clk 0:00:29]} 53. Kf3 {[%clk 0:00:37]}  Bd6 {[%clk 0:00:29]} 54. Ke4 {[%clk 0:00:36]}  Bc7 {[%clk 0:00:29]} 55. Kf5 {[%clk 0:00:36]}  Bb8 {[%clk 0:00:28]} 56. Be8 {[%clk 0:00:36]}  Bc7 {[%clk 0:00:28]} 57. Bh5 {[%clk 0:00:36]}  Bb8 {[%clk 0:00:28]} 58. fxg5 {[%clk 0:00:36]}  hxg5 {[%clk 0:00:28]} 59. Kxg5 {[%clk 0:00:36]}  Bxg3 {[%clk 0:00:28]} 60. Kf5 {[%clk 0:00:37]}  Bh4 {[%clk 0:00:28]} 61. Be8 {[%clk 0:00:36]}  Bd8 {[%clk 0:00:28]} 62. Bb5 {[%clk 0:00:35]}  Be7 {[%clk 0:00:28]} 63. Bc4 {[%clk 0:00:36]}  Bd8 {[%clk 0:00:28]} 64. Ke6 {[%clk 0:00:35]}  Bg5 {[%clk 0:00:27]} 65. Bd3 {[%clk 0:00:29]}  Bh4 {[%clk 0:00:26]} 1/2-1/2


[Site "https://www.chess.com"]

[Event "Titled Tuesday Blitz June 27 Early 2023"]
[White "Darini, Pouria"]
[Black "Georg, Heinz"]
[WhiteFideId "12502200"]
[BlackFideId "4607295"]
[WhiteElo "2703"]
[BlackElo "2292"]
[Result "1-0"]
[Round "2"]
[TimeControl "180+2"]
[Date "2023.06.27"]
[WhiteClock "0:00:12"]
[BlackClock "0:00:22"]
[Board "107"]

1. e4 {[%clk 0:03:00]}  e5 {[%clk 0:02:46]} 2. Nf3 {[%clk 0:03:01]}  Nc6 {[%clk 0:02:45]} 3. Bb5 {[%clk 0:03:01]}  f5 {[%clk 0:02:45]} 4. d3 {[%clk 0:03:00]}  Nf6 {[%clk 0:02:44]} 5. O-O {[%clk 0:02:55]}  d6 {[%clk 0:02:44]} 6. exf5 {[%clk 0:02:29]}  Bxf5 {[%clk 0:02:42]} 7. d4 {[%clk 0:02:29]}  exd4 {[%clk 0:02:37]} 8. Nxd4 {[%clk 0:02:26]}  Bd7 {[%clk 0:02:37]} 9. Nc3 {[%clk 0:01:59]}  Be7 {[%clk 0:02:35]} 10. Bc4 {[%clk 0:01:59]}  Ne5 {[%clk 0:02:32]} 11. Ne6 {[%clk 0:01:57]}  Qc8 {[%clk 0:02:26]} 12. Nxg7+ {[%clk 0:01:52]}  Kf8 {[%clk 0:02:26]} 13. Bh6 {[%clk 0:01:49]}  Nxc4 {[%clk 0:02:25]} 14. Nd5 {[%clk 0:01:37]}  Bg4 {[%clk 0:02:10]} 15. f3 {[%clk 0:00:54]}  Bd7 {[%clk 0:01:42]} 16. Nf5+ {[%clk 0:00:41]}  Kf7 {[%clk 0:01:40]} 17. Nfxe7 {[%clk 0:00:39]}  Qd8 {[%clk 0:01:30]} 18. Re1 {[%clk 0:00:34]}  Bc6 {[%clk 0:01:22]} 19. Nxf6 {[%clk 0:00:31]}  Kxf6 {[%clk 0:01:14]} 20. Qd4+ {[%clk 0:00:32]}  Ne5 {[%clk 0:01:13]} 21. Nxc6 {[%clk 0:00:30]}  bxc6 {[%clk 0:01:13]} 22. f4 {[%clk 0:00:29]}  Kg6 {[%clk 0:01:12]} 23. Bg5 {[%clk 0:00:22]}  Qf8 {[%clk 0:00:41]} 24. Bh4 {[%clk 0:00:22]}  Nd7 {[%clk 0:00:32]} 25. Re6+ {[%clk 0:00:22]}  Nf6 {[%clk 0:00:30]} 26. Rxf6+ {[%clk 0:00:22]}  Kh5 {[%clk 0:00:25]} 27. Qd1+ {[%clk 0:00:09]}  Kxh4 {[%clk 0:00:24]} 28. Qe1+ {[%clk 0:00:10]}  Kh5 {[%clk 0:00:23]} 29. Qe2+ {[%clk 0:00:10]}  Kh4 {[%clk 0:00:22]} 30. Qf2+ {[%clk 0:00:11]}  Kh5 {[%clk 0:00:22]} 31. Qf3+ {[%clk 0:00:12]}  Kh4 {[%clk 0:00:22]} 32. Qh3# {[%clk 0:00:12]} 1-0


[Site "https://www.chess.com"]

[Event "Titled Tuesday Blitz June 27 Early 2023"]
[White "Skuhala, Jernej"]
[Black "Pap, Gyula"]
[WhiteFideId "14605651"]
[BlackFideId "725323"]
[WhiteElo "2570"]
[BlackElo "2951"]
[Result "1-0"]
[Round "2"]
[TimeControl "180+2"]
[Date "2023.06.27"]
[WhiteClock "0:00:09"]
[BlackClock "0:00:00"]
[Board "112"]

1. e4 {[%clk 0:02:18]}  e5 {[%clk 0:03:00]} 2. Nf3 {[%clk 0:02:16]}  Nc6 {[%clk 0:03:00]} 3. Bb5 {[%clk 0:02:15]}  a6 {[%clk 0:03:00]} 4. Ba4 {[%clk 0:02:16]}  Nge7 {[%clk 0:03:00]} 5. O-O {[%clk 0:02:16]}  Ng6 {[%clk 0:03:01]} 6. c3 {[%clk 0:02:16]}  d5 {[%clk 0:03:01]} 7. exd5 {[%clk 0:02:16]}  Qxd5 {[%clk 0:03:02]} 8. d4 {[%clk 0:02:17]}  Bg4 {[%clk 0:03:03]} 9. Bxc6+ {[%clk 0:02:12]}  Qxc6 {[%clk 0:02:48]} 10. Nxe5 {[%clk 0:02:06]}  Nxe5 {[%clk 0:02:47]} 11. Qe1 {[%clk 0:02:05]}  O-O-O {[%clk 0:02:29]} 12. Qxe5 {[%clk 0:01:56]}  Bd6 {[%clk 0:02:28]} 13. Qg5 {[%clk 0:01:56]}  h5 {[%clk 0:02:28]} 14. Qd2 {[%clk 0:01:19]}  Rde8 {[%clk 0:02:16]} 15. f3 {[%clk 0:01:12]}  Bf5 {[%clk 0:01:56]} 16. Na3 {[%clk 0:01:01]}  h4 {[%clk 0:01:45]} 17. Nc2 {[%clk 0:00:52]}  h3 {[%clk 0:01:44]} 18. g3 {[%clk 0:00:52]}  Bxg3 {[%clk 0:01:13]} 19. hxg3 {[%clk 0:00:32]}  h2+ {[%clk 0:01:01]} 20. Kh1 {[%clk 0:00:32]}  Bxc2 {[%clk 0:00:57]} 21. Qxc2 {[%clk 0:00:20]}  Qxf3+ {[%clk 0:00:24]} 22. Qg2 {[%clk 0:00:20]}  Qd3 {[%clk 0:00:11]} 23. Bf4 {[%clk 0:00:16]}  Re2 {[%clk 0:00:09]} 24. Rf2 {[%clk 0:00:16]}  Rhe8 {[%clk 0:00:06]} 25. Raf1 {[%clk 0:00:16]}  Rxf2 {[%clk 0:00:04]} 26. Qxf2 {[%clk 0:00:17]}  Qe4+ {[%clk 0:00:02]} 27. Qg2 {[%clk 0:00:17]}  Qd3 {[%clk 0:00:02]} 28. Kxh2 {[%clk 0:00:16]}  Re2 {[%clk 0:00:01]} 29. Rf2 {[%clk 0:00:16]}  Re1 {[%clk 0:00:01]} 30. Qh3+ {[%clk 0:00:16]}  Kb8 {[%clk 0:00:02]} 31. Rg2 {[%clk 0:00:16]}  Qf1 {[%clk 0:00:00]} 32. g4 {[%clk 0:00:09]} 1-0


[Site "https://www.chess.com"]

[Event "Titled Tuesday Blitz June 27 Early 2023"]
[White "Eidelman, Gabriel"]
[Black "Bachmann, Axel"]
[WhiteFideId "30910544"]
[BlackFideId "3700488"]
[WhiteElo "2471"]
[BlackElo "2792"]
[Result "0-1"]
[Round "2"]
[TimeControl "180+2"]
[Date "2023.06.27"]
[WhiteClock "0:00:02"]
[BlackClock "0:01:17"]
[Board "113"]

1. Nf3 {[%clk 0:03:00]}  Nf6 {[%clk 0:02:59]} 2. c4 {[%clk 0:03:00]}  e6 {[%clk 0:02:59]} 3. Nc3 {[%clk 0:02:59]}  d5 {[%clk 0:02:59]} 4. e3 {[%clk 0:03:00]}  c5 {[%clk 0:02:58]} 5. cxd5 {[%clk 0:02:56]}  exd5 {[%clk 0:02:57]} 6. d4 {[%clk 0:02:47]}  Nc6 {[%clk 0:02:57]} 7. Bb5 {[%clk 0:02:45]}  cxd4 {[%clk 0:02:57]} 8. Nxd4 {[%clk 0:02:46]}  Bd7 {[%clk 0:02:57]} 9. O-O {[%clk 0:02:38]}  Bd6 {[%clk 0:02:57]} 10. Nf3 {[%clk 0:02:38]}  Bg4 {[%clk 0:02:49]} 11. h3 {[%clk 0:02:31]}  Be6 {[%clk 0:02:42]} 12. b3 {[%clk 0:02:09]}  O-O {[%clk 0:02:39]} 13. Bb2 {[%clk 0:02:08]}  Rc8 {[%clk 0:02:37]} 14. Bd3 {[%clk 0:01:46]}  Bb8 {[%clk 0:02:34]} 15. a3 {[%clk 0:01:41]}  Qd7 {[%clk 0:02:08]} 16. Ng5 {[%clk 0:01:20]}  Qd6 {[%clk 0:02:02]} 17. g3 {[%clk 0:01:11]}  Ne5 {[%clk 0:01:57]} 18. Nxe6 {[%clk 0:00:44]}  Qxe6 {[%clk 0:01:32]} 19. Kg2 {[%clk 0:00:39]}  Rfd8 {[%clk 0:01:32]} 20. Ne2 {[%clk 0:00:36]}  Ne4 {[%clk 0:01:29]} 21. Nf4 {[%clk 0:00:30]}  Qh6 {[%clk 0:01:28]} 22. Qh5 {[%clk 0:00:20]}  Qxh5 {[%clk 0:01:27]} 23. Nxh5 {[%clk 0:00:21]}  Nxd3 {[%clk 0:01:27]} 24. Bxg7 {[%clk 0:00:19]}  Rc2 {[%clk 0:01:20]} 25. Bf6 {[%clk 0:00:02]}  Rd6 {[%clk 0:01:17]} 0-1


[Site "https://www.chess.com"]

[Event "Titled Tuesday Blitz June 27 Early 2023"]
[White "Goltsev, Dmitry"]
[Black "Silva, Caio Henrique Angelico"]
[WhiteFideId "24176710"]
[BlackFideId "22777210"]
[WhiteElo "2730"]
[BlackElo "2465"]
[Result "1/2-1/2"]
[Round "2"]
[TimeControl "180+2"]
[Date "2023.06.27"]
[WhiteClock "0:00:17"]
[BlackClock "0:00:03"]
[Board "116"]

1. e4 {[%clk 0:03:00]}  c6 {[%clk 0:02:59]} 2. Nf3 {[%clk 0:03:01]}  d5 {[%clk 0:02:59]} 3. Nc3 {[%clk 0:03:01]}  Bg4 {[%clk 0:02:58]} 4. d4 {[%clk 0:03:01]}  e6 {[%clk 0:02:56]} 5. h3 {[%clk 0:03:01]}  Bxf3 {[%clk 0:02:56]} 6. Qxf3 {[%clk 0:03:01]}  Nf6 {[%clk 0:02:56]} 7. e5 {[%clk 0:03:02]}  Nfd7 {[%clk 0:02:56]} 8. Ne2 {[%clk 0:03:01]}  c5 {[%clk 0:02:56]} 9. c3 {[%clk 0:03:02]}  Nc6 {[%clk 0:02:56]} 10. Bd2 {[%clk 0:03:01]}  Qb6 {[%clk 0:02:55]} 11. Qd3 {[%clk 0:02:57]}  cxd4 {[%clk 0:02:50]} 12. cxd4 {[%clk 0:02:54]}  Be7 {[%clk 0:02:42]} 13. Bc3 {[%clk 0:02:53]}  f6 {[%clk 0:02:32]} 14. exf6 {[%clk 0:02:52]}  Bxf6 {[%clk 0:02:33]} 15. g3 {[%clk 0:02:51]}  e5 {[%clk 0:02:19]} 16. dxe5 {[%clk 0:02:47]}  Ndxe5 {[%clk 0:02:20]} 17. Qf5 {[%clk 0:02:38]}  O-O {[%clk 0:01:36]} 18. Bg2 {[%clk 0:02:36]}  d4 {[%clk 0:01:35]} 19. Bd2 {[%clk 0:02:22]}  d3 {[%clk 0:01:34]} 20. Nf4 {[%clk 0:02:12]}  Nd4 {[%clk 0:01:30]} 21. Bd5+ {[%clk 0:02:06]}  Kh8 {[%clk 0:01:30]} 22. Qh5 {[%clk 0:02:03]}  Nc2+ {[%clk 0:01:20]} 23. Kf1 {[%clk 0:02:02]}  Nxa1 {[%clk 0:01:17]} 24. Be4 {[%clk 0:01:52]}  h6 {[%clk 0:00:36]} 25. Ng6+ {[%clk 0:01:40]}  Kg8 {[%clk 0:00:25]} 26. Bxh6 {[%clk 0:01:20]}  gxh6 {[%clk 0:00:08]} 27. Qxh6 {[%clk 0:01:11]}  Bg7 {[%clk 0:00:08]} 28. Bd5+ {[%clk 0:00:32]}  Rf7 {[%clk 0:00:04]} 29. Bxf7+ {[%clk 0:00:26]}  Nxf7 {[%clk 0:00:04]} 30. Ne7+ {[%clk 0:00:27]}  Kf8 {[%clk 0:00:04]} 31. Ng6+ {[%clk 0:00:27]}  Kg8 {[%clk 0:00:04]} 32. Ne7+ {[%clk 0:00:19]}  Kf8 {[%clk 0:00:04]} 33. Ng6+ {[%clk 0:00:17]}  Kg8 {[%clk 0:00:03]} 1/2-1/2


[Site "https://www.chess.com"]

[Event "Titled Tuesday Blitz June 27 Early 2023"]
[White "FuenfgegenWilly"]
[Black "Atakhan, Abtin"]
[BlackFideId "22502203"]
[WhiteElo "2393"]
[BlackElo "2723"]
[Result "0-1"]
[Round "2"]
[TimeControl "180+2"]
[Date "2023.06.27"]
[WhiteClock "0:01:07"]
[BlackClock "0:00:27"]
[Board "117"]

1. d4 {[%clk 0:02:56]}  Nf6 {[%clk 0:03:00]} 2. c4 {[%clk 0:02:55]}  g6 {[%clk 0:03:01]} 3. Nc3 {[%clk 0:02:55]}  d5 {[%clk 0:03:01]} 4. cxd5 {[%clk 0:02:54]}  Nxd5 {[%clk 0:03:02]} 5. e4 {[%clk 0:02:55]}  Nxc3 {[%clk 0:03:03]} 6. bxc3 {[%clk 0:02:56]}  Bg7 {[%clk 0:03:04]} 7. Nf3 {[%clk 0:02:56]}  c5 {[%clk 0:03:04]} 8. Be3 {[%clk 0:02:55]}  Qa5 {[%clk 0:03:03]} 9. Qd2 {[%clk 0:02:54]}  O-O {[%clk 0:03:04]} 10. O-O-O {[%clk 0:02:53]}  Bg4 {[%clk 0:02:46]} 11. h3 {[%clk 0:02:44]}  Bxf3 {[%clk 0:02:46]} 12. gxf3 {[%clk 0:02:45]}  Nc6 {[%clk 0:02:45]} 13. e5 {[%clk 0:02:38]}  cxd4 {[%clk 0:02:39]} 14. cxd4 {[%clk 0:02:37]}  Nb4 {[%clk 0:02:35]} 15. Kb1 {[%clk 0:02:36]}  Rac8 {[%clk 0:02:31]} 16. Bd3 {[%clk 0:02:35]}  Rfd8 {[%clk 0:02:22]} 17. Rc1 {[%clk 0:02:33]}  Qb6 {[%clk 0:02:15]} 18. Ka1 {[%clk 0:02:30]}  Nd5 {[%clk 0:01:37]} 19. Be4 {[%clk 0:02:24]}  Rxc1+ {[%clk 0:01:28]} 20. Rxc1 {[%clk 0:02:24]}  h5 {[%clk 0:01:19]} 21. Qb2 {[%clk 0:02:10]}  Qa6 {[%clk 0:01:16]} 22. Qb3 {[%clk 0:02:04]}  e6 {[%clk 0:01:15]} 23. Qc4 {[%clk 0:01:57]}  Qa3 {[%clk 0:01:13]} 24. Bxd5 {[%clk 0:01:51]}  Rxd5 {[%clk 0:01:09]} 25. Qc8+ {[%clk 0:01:51]}  Kh7 {[%clk 0:01:08]} 26. Qxb7 {[%clk 0:01:51]}  a6 {[%clk 0:00:31]} 27. Qxf7 {[%clk 0:01:44]}  Rb5 {[%clk 0:00:30]} 28. Rc2 {[%clk 0:01:07]}  Qb4 {[%clk 0:00:27]} 0-1


[Site "https://www.chess.com"]

[Event "Titled Tuesday Blitz June 27 Early 2023"]
[White "LeoLV10"]
[Black "Fernandez Guillen, Ernesto J."]
[BlackFideId "3512428"]
[WhiteElo "2430"]
[BlackElo "2695"]
[Result "0-1"]
[Round "2"]
[TimeControl "180+2"]
[Date "2023.06.27"]
[WhiteClock "0:00:00"]
[BlackClock "0:00:17"]
[Board "118"]

1. e4 {[%clk 0:03:00]}  e5 {[%clk 0:03:00]} 2. Nf3 {[%clk 0:03:00]}  Nc6 {[%clk 0:02:59]} 3. Bb5 {[%clk 0:03:00]}  f5 {[%clk 0:02:58]} 4. d3 {[%clk 0:02:57]}  fxe4 {[%clk 0:02:57]} 5. dxe4 {[%clk 0:02:58]}  Nf6 {[%clk 0:02:57]} 6. Nc3 {[%clk 0:02:58]}  Bb4 {[%clk 0:02:57]} 7. O-O {[%clk 0:02:58]}  d6 {[%clk 0:02:57]} 8. Bg5 {[%clk 0:02:56]}  Bxc3 {[%clk 0:02:56]} 9. bxc3 {[%clk 0:02:57]}  Bg4 {[%clk 0:02:56]} 10. h3 {[%clk 0:02:56]}  Bh5 {[%clk 0:02:56]} 11. Re1 {[%clk 0:02:41]}  Qd7 {[%clk 0:02:56]} 12. Bxf6 {[%clk 0:02:22]}  gxf6 {[%clk 0:02:55]} 13. Nxe5 {[%clk 0:02:22]}  fxe5 {[%clk 0:02:43]} 14. Qxh5+ {[%clk 0:02:21]}  Qf7 {[%clk 0:02:44]} 15. Qxf7+ {[%clk 0:02:16]}  Kxf7 {[%clk 0:02:45]} 16. Bc4+ {[%clk 0:02:16]}  Kf6 {[%clk 0:02:45]} 17. Re3 {[%clk 0:02:16]}  Raf8 {[%clk 0:02:43]} 18. Rf1 {[%clk 0:02:12]}  h5 {[%clk 0:02:41]} 19. Kh2 {[%clk 0:02:08]}  h4 {[%clk 0:02:39]} 20. f4 {[%clk 0:01:52]}  exf4 {[%clk 0:02:39]} 21. Rxf4+ {[%clk 0:01:52]}  Ke5 {[%clk 0:02:40]} 22. Rg4 {[%clk 0:01:50]}  Rh7 {[%clk 0:02:19]} 23. Rf3 {[%clk 0:01:17]}  Rxf3 {[%clk 0:02:04]} 24. gxf3 {[%clk 0:01:18]}  Kf6 {[%clk 0:02:01]} 25. Rf4+ {[%clk 0:01:06]}  Ke7 {[%clk 0:02:01]} 26. Kg2 {[%clk 0:01:00]}  Ne5 {[%clk 0:02:00]} 27. Be2 {[%clk 0:00:55]}  a5 {[%clk 0:01:58]} 28. Kf2 {[%clk 0:00:54]}  a4 {[%clk 0:01:54]} 29. Rf5 {[%clk 0:00:55]}  a3 {[%clk 0:01:49]} 30. f4 {[%clk 0:00:47]}  Nc6 {[%clk 0:01:49]} 31. Bb5 {[%clk 0:00:37]}  Rg7 {[%clk 0:01:48]} 32. Bxc6 {[%clk 0:00:20]}  bxc6 {[%clk 0:01:49]} 33. Rh5 {[%clk 0:00:21]}  Rg3 {[%clk 0:01:48]} 34. Rh7+ {[%clk 0:00:21]}  Kd8 {[%clk 0:01:48]} 35. Rxh4 {[%clk 0:00:21]}  Rxc3 {[%clk 0:01:49]} 36. Rh8+ {[%clk 0:00:21]}  Kd7 {[%clk 0:01:48]} 37. Rh7+ {[%clk 0:00:21]}  Kc8 {[%clk 0:01:48]} 38. f5 {[%clk 0:00:18]}  Rxc2+ {[%clk 0:01:48]} 39. Ke3 {[%clk 0:00:17]}  Rc1 {[%clk 0:00:37]} 40. Rg7 {[%clk 0:00:14]}  Kd8 {[%clk 0:00:34]} 41. Rg3 {[%clk 0:00:10]}  Rc2 {[%clk 0:00:30]} 42. Kf4 {[%clk 0:00:08]}  Rxa2 {[%clk 0:00:29]} 43. Kg5 {[%clk 0:00:09]}  Ke7 {[%clk 0:00:25]} 44. f6+ {[%clk 0:00:06]}  Kf7 {[%clk 0:00:24]} 45. h4 {[%clk 0:00:04]}  Ra1 {[%clk 0:00:24]} 46. h5 {[%clk 0:00:03]}  a2 {[%clk 0:00:24]} 47. Kh6 {[%clk 0:00:00]}  Rh1 {[%clk 0:00:17]} 0-1


[Site "https://www.chess.com"]

[Event "Titled Tuesday Blitz June 27 Early 2023"]
[White "Alahakoon, Isuru"]
[Black "Weishaeutel, Moritz"]
[WhiteFideId "9900993"]
[BlackFideId "12967300"]
[WhiteElo "2361"]
[BlackElo "2641"]
[Result "0-1"]
[Round "2"]
[TimeControl "180+2"]
[Date "2023.06.27"]
[WhiteClock "0:00:59"]
[BlackClock "0:00:29"]
[Board "119"]

1. Nf3 {[%clk 0:02:36]}  Nf6 {[%clk 0:02:54]} 2. d4 {[%clk 0:02:35]}  d5 {[%clk 0:02:53]} 3. c4 {[%clk 0:02:35]}  e6 {[%clk 0:02:53]} 4. Nc3 {[%clk 0:02:34]}  Be7 {[%clk 0:02:54]} 5. Bf4 {[%clk 0:02:34]}  O-O {[%clk 0:02:53]} 6. e3 {[%clk 0:02:34]}  c5 {[%clk 0:02:49]} 7. cxd5 {[%clk 0:02:31]}  Nxd5 {[%clk 0:02:43]} 8. Bg3 {[%clk 0:02:31]}  Nc6 {[%clk 0:02:42]} 9. Qc2 {[%clk 0:02:24]}  cxd4 {[%clk 0:02:40]} 10. exd4 {[%clk 0:02:25]}  Ndb4 {[%clk 0:02:35]} 11. Qd2 {[%clk 0:02:22]}  Nxd4 {[%clk 0:02:34]} 12. Nxd4 {[%clk 0:02:08]}  Qxd4 {[%clk 0:02:34]} 13. O-O-O {[%clk 0:02:09]}  Qxd2+ {[%clk 0:02:14]} 14. Rxd2 {[%clk 0:02:10]}  Bg5 {[%clk 0:02:14]} 15. f4 {[%clk 0:02:09]}  Bf6 {[%clk 0:02:14]} 16. Ne4 {[%clk 0:02:02]}  Be7 {[%clk 0:01:42]} 17. a3 {[%clk 0:01:53]}  Nd5 {[%clk 0:01:41]} 18. Bc4 {[%clk 0:01:44]}  b6 {[%clk 0:01:30]} 19. Bxd5 {[%clk 0:01:41]}  exd5 {[%clk 0:01:31]} 20. Rxd5 {[%clk 0:01:41]}  Bb7 {[%clk 0:01:28]} 21. Rd7 {[%clk 0:01:41]}  Rac8+ {[%clk 0:01:29]} 22. Kd2 {[%clk 0:01:39]}  Rfd8 {[%clk 0:01:23]} 23. Rxd8+ {[%clk 0:01:38]}  Rxd8+ {[%clk 0:01:24]} 24. Ke3 {[%clk 0:01:38]}  f5 {[%clk 0:01:22]} 25. Nc3 {[%clk 0:01:33]}  Bxg2 {[%clk 0:00:55]} 26. Rd1 {[%clk 0:01:32]}  Bc5+ {[%clk 0:00:55]} 27. Ke2 {[%clk 0:01:31]}  Re8+ {[%clk 0:00:53]} 28. Kd2 {[%clk 0:01:31]}  Rd8+ {[%clk 0:00:45]} 29. Kc2 {[%clk 0:01:30]}  Rxd1 {[%clk 0:00:45]} 30. Kxd1 {[%clk 0:01:31]}  Kf7 {[%clk 0:00:41]} 31. Ke2 {[%clk 0:01:31]}  Ke6 {[%clk 0:00:41]} 32. Bf2 {[%clk 0:01:30]}  Bd6 {[%clk 0:00:40]} 33. Bd4 {[%clk 0:01:29]}  g6 {[%clk 0:00:38]} 34. Ke3 {[%clk 0:01:27]}  Bc6 {[%clk 0:00:35]} 35. b4 {[%clk 0:01:25]}  h6 {[%clk 0:00:28]} 36. b5 {[%clk 0:01:20]}  Bd7 {[%clk 0:00:28]} 37. a4 {[%clk 0:01:20]}  g5 {[%clk 0:00:28]} 38. fxg5 {[%clk 0:01:16]}  hxg5 {[%clk 0:00:29]} 39. a5 {[%clk 0:01:17]}  Bxh2 {[%clk 0:00:28]} 40. axb6 {[%clk 0:01:16]}  axb6 {[%clk 0:00:29]} 41. Bxb6 {[%clk 0:00:59]}  Bg1+ {[%clk 0:00:29]} 0-1


[Site "https://www.chess.com"]